[Event "EYTCC U18 Open 2019"]
[Site "Pardubice"]
[Date "2019.07.13"]
[Round "3.25"]
[White "Blohberger, Felix"]
[Black "Engel, Luis"]
[Result "1/2-1/2"]
[ECO "B51"]
[WhiteElo "2476"]
[BlackElo "2509"]
[Annotator "ChessBase"]
[PlyCount "80"]
[EventDate "2019.07.11"]
[EventType "swiss"]
[EventCountry "CZE"]
[SourceTitle "playchess.com"]
[Source "ChessBase"]
[SourceQuality "1"]
[WhiteTeam "Austria"]
[BlackTeam "Germany"]
[WhiteTeamCountry "AUT"]
[BlackTeamCountry "GER"]
[TimeControl "40/5400+30:1800+30"]

1. e4 {[%emt 0:00:00]} c5 {[%emt 0:00:00]} 2. Nf3 {[%emt 0:00:00]} d6 {[%emt 0:00:00]} 3. Bb5+ {[%emt 0:00:00]} Nd7 {[%emt 0:00:00]} 4. O-O {[%emt 0:00:17]} a6 {[%emt 0:00:00]} 5. Bd3 {[%emt 0:00:21]} Ngf6 {[%emt 0:00:08]} 6. Re1 {[%emt 0:00:25]} e6 {[%emt 0:00:30]} 7. c3 {[%emt 0:00:52]} b5 {[%emt 0:00:36]} 8. Bc2 {[%emt 0:01:09]} Bb7 {[%emt 0:05:33]} 9. d4 {[%emt 0:00:49]} Be7 {[%emt 0:00:07]} 10. Nbd2 {[%emt 0:01:34]} Qc7 {[%emt 0:00:09]} 11. Nf1 {[%emt 0:01:53]} Rc8 {[%emt 0:00:29]} 12. Bd3 {[%emt 0:02:53]} O-O {[%emt 0:01:18]} 13. Ng3 {[%emt 0:01:49]} Rfe8 {[%emt 0:01:59]} 14. Qe2 {[%emt 0:05:03]} Bf8 {[%emt 0:05:57]} 15. Bd2 {[%emt 0:21:59]} g6 {[%emt 0:04:07]} 16. b3 {[%emt 0:09:12]} Bg7 {[%emt 0:11:59]} 17. h3 {[%emt 0:14:44]} Nb6 {[%emt 0:08:07]} 18. Rac1 {[%emt 0:03:02]} Nfd7 {[%emt 0:06:36]} 19. Be3 {[%emt 0:07:38]} f5 {[%emt 0:10:48]} 20. Qd2 {[%emt 0:12:20]} Nf6 {[%emt 0:06:40]} 21. Bh6 {[%emt 0:12:10]} fxe4 {[%emt 0:08:14]} 22. Bxg7 {[%emt 0:00:50]} Qxg7 {[%emt 0:01:02]} 23. Nxe4 {[%emt 0:00:12]} Nxe4 {[%emt 0:04:03]} 24. Bxe4 {[%emt 0:00:05]} cxd4 {[%emt 0:01:35]} 25. cxd4 {[%emt 0:01:33]} Rxc1 {[%emt 0:00:43]} 26. Qxc1 {[%emt 0:00:12]} Nd5 {[%emt 0:01:03]} 27. Qd2 {[%emt 0:00:33]} Rf8 {[%emt 0:04:32]} 28. Ng5 {[%emt 0:00:55]} Qf6 {[%emt 0:02:38]} 29. Bxd5 {[%emt 0:00:45]} Bxd5 {[%emt 0:00:07]} 30. Ne4 {[%emt 0:00:21]} Bxe4 {[%emt 0:06:02]} 31. Rxe4 {[%emt 0:00:06]} Qf5 {[%emt 0:00:32]} 32. Qe3 {[%emt 0:01:01]} Rf6 {[%emt 0:00:42]} 33. g4 {[%emt 0:00:59]} Qd5 {[%emt 0:00:29]} 34. Rf4 {[%emt 0:00:15]} Rxf4 {[%emt 0:01:05]} 35. Qxf4 {[%emt 0:00:06]} e5 {[%emt 0:02:02]} 36. dxe5 {[%emt 0:00:26]} dxe5 {[%emt 0:00:06]} 37. Qf6 {[%emt 0:00:37]} a5 {[%emt 0:01:53]} 38. Qe7 {[%emt 0:00:32]} b4 {[%emt 0:01:28]} 39. Qe8+ {[%emt 0:00:06]} Kg7 {[%emt 0:00:06]} 40. Qe7+ {[%emt 0:00:04]} Kg8 {[%emt 0:00:07]} 1/2-1/2

[Event "EYTCC U18 Open 2019"]
[Site "Pardubice"]
[Date "2019.07.13"]
[Round "3.26"]
[White "Parvanyan, Ashot"]
[Black "Horvath, Dominik"]
[Result "0-1"]
[ECO "D02"]
[WhiteElo "2423"]
[BlackElo "2424"]
[Annotator "NA"]
[PlyCount "80"]
[EventDate "2019.07.11"]
[EventType "swiss"]
[EventCountry "CZE"]
[SourceTitle "playchess.com"]
[Source "ChessBase"]
[SourceQuality "1"]
[WhiteTeam "Germany"]
[BlackTeam "Austria"]
[WhiteTeamCountry "GER"]
[BlackTeamCountry "AUT"]
[TimeControl "40/5400+30:1800+30"]

1. Nf3 {[%emt 0:00:00]} d5 {[%emt 0:00:00]} 2. d4 {[%emt 0:00:00]} Nf6 {[%emt 0:00:00]} 3. c4 {[%emt 0:00:14]} e6 {[%emt 0:00:00]} 4. g3 {[%emt 0:00:28]} Bb4+ {[%emt 0:00:00]} 5. Bd2 {[%emt 0:00:11]} Be7 {[%emt 0:00:08]} 6. Bg2 {[%emt 0:00:33]} c6 {[%emt 0:00:22]} 7. O-O {[%emt 0:01:07]} Nbd7 {[%emt 0:00:04]} 8. Na3 {[%emt 0:00:42]} b6 {[%emt 0:03:57]} 9. Rc1 {[%emt 0:02:04]} O-O {[%emt 0:25:14]} 10. cxd5 {[%emt 0:01:47]} cxd5 {[%emt 0:00:06]} 11. Qb3 {[%emt 0:02:03]} Ba6 {[%emt 0:21:02]} 12. Nb5 {[%emt 0:07:38]} Ne4 {[%emt 0:00:04]} 13. Bf4 {[%emt 0:08:12]} g5 {[%emt 0:00:47]} 14. Be3 {[%emt 0:17:38]} Bxb5 {[%emt 0:06:57]} 15. Qxb5 {[%emt 0:00:11]} Nd6 {[%emt 0:02:42]} 16. Qd3 {[%emt 0:04:05]} Nc4 {[%emt 0:01:56]} 17. b3 {[%emt 0:24:03]} Nxe3 {[%emt 0:00:25]} 18. fxe3 {[%emt 0:00:49]} Ba3 {[%emt 0:09:05]} 19. Rb1 {[%emt 0:01:15]} a5 {[%emt 0:04:33]} 20. e4 {[%emt 0:02:40]} dxe4 {[%emt 0:00:42]} 21. Qxe4 {[%emt 0:00:06]} Rc8 {[%emt 0:00:30]} 22. h4 {[%emt 0:10:41]} h6 {[%emt 0:06:43]} 23. hxg5 {[%emt 0:00:29]} hxg5 {[%emt 0:00:03]} 24. Qg4 {[%emt 0:01:39]} Be7 {[%emt 0:00:49]} 25. e4 {[%emt 0:11:37]} f5 {[%emt 0:00:36]} 26. exf5 {[%emt 0:01:24]} exf5 {[%emt 0:00:05]} 27. Qh5 {[%emt 0:00:11]} Kg7 {[%emt 0:01:18]} 28. Nh2 {[%emt 0:01:39]} Rc3 {[%emt 0:03:02]} 29. Rbc1 {[%emt 0:00:31]} Qc7 {[%emt 0:01:45]} 30. Rxc3 {[%emt 0:00:31]} Qxc3 {[%emt 0:00:05]} 31. Qe2 {[%emt 0:00:25]} Qxd4+ {[%emt 0:03:47]} 32. Kh1 {[%emt 0:00:04]} Qe5 {[%emt 0:00:05]} 33. Qd1 {[%emt 0:01:01]} Bd6 {[%emt 0:01:14]} 34. Rf3 {[%emt 0:00:30]} Nc5 {[%emt 0:00:51]} 35. Qc1 {[%emt 0:00:30]} Ne4 {[%emt 0:00:21]} 36. Bf1 {[%emt 0:00:30]} Nxg3+ {[%emt 0:00:34]} 37. Kg2 {[%emt 0:00:12]} Ne4 {[%emt 0:00:47]} 38. Rh3 {[%emt 0:00:04]} Qd4 {[%emt 0:03:37]} 39. Qc2 {[%emt 0:01:10]} g4 {[%emt 0:01:04]} 40. Rd3 {[%emt 0:00:34]} Qe5 {[%emt 0:00:13]} 0-1

[Event "EYTCC U18 Open 2019"]
[Site "Pardubice"]
[Date "2019.07.13"]
[Round "3.27"]
[White "Leisch, Lukas"]
[Black "Schmidek, Emil"]
[Result "1-0"]
[ECO "A16"]
[WhiteElo "2327"]
[BlackElo "2391"]
[Annotator "NA"]
[PlyCount "117"]
[EventDate "2019.07.11"]
[EventType "swiss"]
[EventCountry "CZE"]
[SourceTitle "playchess.com"]
[Source "ChessBase"]
[SourceQuality "1"]
[WhiteTeam "Austria"]
[BlackTeam "Germany"]
[WhiteTeamCountry "AUT"]
[BlackTeamCountry "GER"]
[TimeControl "40/5400+30:1800+30"]

1. c4 {[%emt 0:00:00]} Nf6 {[%emt 0:00:00]} 2. Nc3 {[%emt 0:00:00]} d5 {[%emt 0:00:00]} 3. cxd5 {[%emt 0:00:00]} Nxd5 {[%emt 0:00:00]} 4. Nf3 {[%emt 0:00:00]} g6 {[%emt 0:00:00]} 5. h4 {[%emt 0:00:05]} Bg7 {[%emt 0:00:00]} 6. e4 {[%emt 0:00:07]} Nxc3 {[%emt 0:00:00]} 7. dxc3 {[%emt 0:00:08]} Qxd1+ {[%emt 0:00:00]} 8. Kxd1 {[%emt 0:00:07]} Nd7 {[%emt 0:00:12]} 9. Bc4 {[%emt 0:00:09]} Nf6 {[%emt 0:00:07]} 10. Re1 {[%emt 0:00:07]} Ng4 {[%emt 0:00:10]} 11. Re2 {[%emt 0:00:08]} Bd7 {[%emt 0:12:11]} 12. a4 {[%emt 0:00:13]} a6 {[%emt 0:01:41]} 13. Kc2 {[%emt 0:00:42]} O-O {[%emt 0:17:45]} 14. a5 {[%emt 0:03:53]} Rfc8 {[%emt 0:16:10]} 15. Bf4 {[%emt 0:07:21]} e6 {[%emt 0:10:40]} 16. e5 {[%emt 0:15:20]} h5 {[%emt 0:08:46]} 17. Ng5 {[%emt 0:05:34]} Nh6 {[%emt 0:05:15]} 18. f3 {[%emt 0:03:31]} Bc6 {[%emt 0:03:08]} 19. g4 {[%emt 0:17:49]} hxg4 {[%emt 0:01:13]} 20. fxg4 {[%emt 0:00:16]} Bb5 {[%emt 0:00:16]} 21. Bxb5 {[%emt 0:03:15]} axb5 {[%emt 0:00:03]} 22. Rg2 {[%emt 0:04:38]} Rd8 {[%emt 0:06:20]} 23. Ne4 {[%emt 0:04:16]} Kf8 {[%emt 0:03:54]} 24. Bg5 {[%emt 0:06:47]} Rd5 {[%emt 0:08:11]} 25. Nf6 {[%emt 0:04:19]} Bxf6 {[%emt 0:00:32]} 26. exf6 {[%emt 0:00:43]} Ng8 {[%emt 0:00:03]} 27. Rf2 {[%emt 0:01:15]} Ke8 {[%emt 0:03:38]} 28. Be3 {[%emt 0:02:19]} Re5 {[%emt 0:01:07]} 29. Bf4 {[%emt 0:01:34]} Re4 {[%emt 0:00:20]} 30. g5 {[%emt 0:00:38]} e5 {[%emt 0:02:30]} 31. Bd2 {[%emt 0:02:07]} Rxh4 {[%emt 0:00:33]} 32. Re2 {[%emt 0:01:10]} e4 {[%emt 0:00:12]} 33. Rae1 {[%emt 0:01:17]} Rxa5 {[%emt 0:00:55]} 34. Rxe4+ {[%emt 0:00:09]} Rxe4 {[%emt 0:00:04]} 35. Rxe4+ {[%emt 0:00:07]} Kd7 {[%emt 0:00:11]} 36. Bf4 {[%emt 0:03:19]} Ra6 {[%emt 0:01:02]} 37. Rd4+ {[%emt 0:03:28]} Kc8 {[%emt 0:00:07]} 38. Rd5 {[%emt 0:02:26]} c6 {[%emt 0:01:13]} 39. Rd1 {[%emt 0:01:25]} Ra4 {[%emt 0:00:22]} 40. Be3 {[%emt 0:02:33]} Kc7 {[%emt 0:00:11]} 41. Rd4 {[%emt 0:32:04]} Ra8 {[%emt 0:07:18]} 42. Bf4+ {[%emt 0:00:00]} Kc8 {[%emt 0:02:38]} 43. Rd1 {[%emt 0:00:00]} Ra4 {[%emt 0:02:15]} 44. b4 {[%emt 0:00:00]} Ra2+ {[%emt 0:04:55]} 45. Kd3 {[%emt 0:00:00]} Ra3 {[%emt 0:03:04]} 46. Kd4 {[%emt 0:00:00]} Ra2 {[%emt 0:00:35]} 47. Kc5 {[%emt 0:00:00]} Ra3 {[%emt 0:04:01]} 48. Rd3 {[%emt 0:00:00]} Ra1 {[%emt 0:01:24]} 49. Re3 {[%emt 0:00:00]} Kd7 {[%emt 0:00:24]} 50. Kb6 {[%emt 0:00:00]} Rf1 {[%emt 0:00:15]} 51. Re4 {[%emt 0:00:00]} Rf3 {[%emt 0:02:57]} 52. Be3 {[%emt 0:00:00]} Nxf6 {[%emt 0:00:11]} 53. gxf6 {[%emt 0:00:00]} Rxf6 {[%emt 0:00:02]} 54. Kxb7 {[%emt 0:00:00]} Rf3 {[%emt 0:01:05]} 55. Bc5 {[%emt 0:00:00]} Rf5 {[%emt 0:02:27]} 56. Re7+ {[%emt 0:00:47]} Kd8 {[%emt 0:00:02]} 57. Bd6 {[%emt 0:02:55]} Rf3 {[%emt 0:00:25]} 58. Kxc6 {[%emt 0:01:15]} Rxc3+ {[%emt 0:00:07]} 59. Kxb5 {[%emt 0:00:18]} 1-0

[Event "EYTCC U18 Open 2019"]
[Site "Pardubice"]
[Date "2019.07.13"]
[Round "3.28"]
[White "Krastev, Alexander"]
[Black "Morgunov, Marc"]
[Result "1/2-1/2"]
[ECO "C54"]
[WhiteElo "2325"]
[BlackElo "2314"]
[Annotator "NA"]
[PlyCount "141"]
[EventDate "2019.07.11"]
[EventType "swiss"]
[EventCountry "CZE"]
[SourceTitle "playchess.com"]
[Source "ChessBase"]
[SourceQuality "1"]
[WhiteTeam "Germany"]
[BlackTeam "Austria"]
[WhiteTeamCountry "GER"]
[BlackTeamCountry "AUT"]
[TimeControl "40/5400+30:1800+30"]

1. e4 {[%emt 0:00:00]} e5 {[%emt 0:00:00]} 2. Nf3 {[%emt 0:00:00]} Nc6 {[%emt 0:00:00]} 3. Bc4 {[%emt 0:00:00]} Bc5 {[%emt 0:00:00]} 4. c3 {[%emt 0:00:03]} Nf6 {[%emt 0:00:00]} 5. d3 {[%emt 0:00:04]} a6 {[%emt 0:00:00]} 6. O-O {[%emt 0:00:14]} Ba7 {[%emt 0:00:01]} 7. Bb3 {[%emt 0:00:26]} d6 {[%emt 0:00:10]} 8. Re1 {[%emt 0:00:28]} O-O {[%emt 0:00:27]} 9. h3 {[%emt 0:00:15]} Be6 {[%emt 0:10:20]} 10. Nbd2 {[%emt 0:00:39]} Re8 {[%emt 0:08:24]} 11. Nf1 {[%emt 0:00:33]} h6 {[%emt 0:00:21]} 12. N3h2 {[%emt 0:00:05]} Bxb3 {[%emt 0:12:41]} 13. axb3 {[%emt 0:00:32]} Ne7 {[%emt 0:02:27]} 14. Ng3 {[%emt 0:01:30]} Ng6 {[%emt 0:09:24]} 15. Nf5 {[%emt 0:00:34]} Ne7 {[%emt 0:05:04]} 16. g4 {[%emt 0:06:02]} Nxf5 {[%emt 0:05:31]} 17. gxf5 {[%emt 0:00:12]} d5 {[%emt 0:01:22]} 18. Qf3 {[%emt 0:00:14]} Qd6 {[%emt 0:02:50]} 19. Kh1 {[%emt 0:06:18]} dxe4 {[%emt 0:10:32]} 20. dxe4 {[%emt 0:02:29]} Rad8 {[%emt 0:04:38]} 21. Rg1 {[%emt 0:04:45]} Kh7 {[%emt 0:01:51]} 22. Qg3 {[%emt 0:11:16]} Rg8 {[%emt 0:02:40]} 23. Qh4 {[%emt 0:03:37]} Qd3 {[%emt 0:02:30]} 24. Re1 {[%emt 0:00:48]} g5 {[%emt 0:01:08]} 25. fxg6+ {[%emt 0:00:52]} Rxg6 {[%emt 0:00:04]} 26. Be3 {[%emt 0:00:31]} Bxe3 {[%emt 0:02:29]} 27. Rxe3 {[%emt 0:00:06]} Qc2 {[%emt 0:02:50]} 28. Rae1 {[%emt 0:04:36]} Rd1 {[%emt 0:01:40]} 29. Nf3 {[%emt 0:00:49]} Rxe1+ {[%emt 0:02:19]} 30. Rxe1 {[%emt 0:00:23]} Qxb2 {[%emt 0:01:08]} 31. Rg1 {[%emt 0:11:21]} Qxc3 {[%emt 0:05:45]} 32. Rxg6 {[%emt 0:00:43]} Qxf3+ {[%emt 0:00:06]} 33. Rg2 {[%emt 0:00:07]} Nxe4 {[%emt 0:00:41]} 34. Kh2 {[%emt 0:01:23]} f6 {[%emt 0:02:17]} 35. Qg4 {[%emt 0:02:19]} Qxg4 {[%emt 0:00:06]} 36. hxg4 {[%emt 0:00:23]} Kg6 {[%emt 0:01:45]} 37. f3 {[%emt 0:00:58]} Nc5 {[%emt 0:00:25]} 38. b4 {[%emt 0:10:42]} Nd3 {[%emt 0:02:57]} 39. Rc2 {[%emt 0:00:08]} c6 {[%emt 0:00:19]} 40. Rc4 {[%emt 0:00:10]} Nf4 {[%emt 0:00:11]} 41. Kg3 {[%emt 0:37:04]} Kg5 {[%emt 0:30:23]} 42. Re4 {[%emt 0:00:43]} Nd5 {[%emt 0:01:08]} 43. Kf2 {[%emt 0:02:43]} b5 {[%emt 0:00:00]} 44. Ke1 {[%emt 0:00:00]} Nf4 {[%emt 0:00:00]} 45. Kf2 {[%emt 0:00:00]} Nd5 {[%emt 0:00:00]} 46. Ke1 {[%emt 0:00:00]} h5 {[%emt 0:00:00]} 47. gxh5 {[%emt 0:00:00]} Kxh5 {[%emt 0:00:00]} 48. Kd2 {[%emt 0:00:00]} Kg5 {[%emt 0:00:00]} 49. Rg4+ {[%emt 0:00:00]} Kf5 {[%emt 0:00:00]} 50. Rh4 {[%emt 0:00:00]} Ke6 {[%emt 0:00:00]} 51. Kc2 {[%emt 0:00:00]} Kd6 {[%emt 0:00:00]} 52. Kb3 {[%emt 0:00:00]} c5 {[%emt 0:00:00]} 53. bxc5+ {[%emt 0:00:00]} Kxc5 {[%emt 0:00:00]} 54. Rh8 {[%emt 0:00:00]} Nb6 {[%emt 0:00:00]} 55. Rf8 {[%emt 0:00:00]} a5 {[%emt 0:00:00]} 56. Rxf6 {[%emt 0:00:00]} a4+ {[%emt 0:00:00]} 57. Kc2 {[%emt 0:00:00]} b4 {[%emt 0:00:00]} 58. Rf8 {[%emt 0:00:00]} Kd4 {[%emt 0:00:00]} 59. Rd8+ {[%emt 0:00:00]} Ke3 {[%emt 0:00:00]} 60. Rb8 {[%emt 0:02:57]} Nd5 {[%emt 0:00:00]} 61. Ra8 {[%emt 0:04:23]} Kxf3 {[%emt 0:00:00]} 62. Rxa4 {[%emt 0:00:30]} Ke4 {[%emt 0:00:00]} 63. Ra8 {[%emt 0:01:27]} Kd4 {[%emt 0:00:00]} 64. Rd8 {[%emt 0:07:39]} e4 {[%emt 0:00:00]} 65. Kb3 {[%emt 0:00:41]} e3 {[%emt 0:00:00]} 66. Re8 {[%emt 0:00:05]} Kd3 {[%emt 0:00:57]} 67. Re5 {[%emt 0:00:14]} e2 {[%emt 0:01:12]} 68. Rxd5+ {[%emt 0:00:07]} Ke3 {[%emt 0:00:06]} 69. Re5+ {[%emt 0:00:07]} Kf2 {[%emt 0:00:08]} 70. Kxb4 {[%emt 0:00:07]} e1=Q+ {[%emt 0:00:05]} 71. Rxe1 {[%emt 0:00:05]} 1/2-1/2

[Event "EYTCC U18 Open 2019"]
[Site "Pardubice"]
[Date "2019.07.13"]
[Round "3.29"]
[White "Gumularz, Szymon"]
[Black "Erenberg, Ariel"]
[Result "1/2-1/2"]
[ECO "A13"]
[WhiteElo "2502"]
[BlackElo "2442"]
[Annotator "ChessBase"]
[PlyCount "61"]
[EventDate "2019.07.11"]
[EventType "swiss"]
[EventCountry "CZE"]
[SourceTitle "playchess.com"]
[Source "ChessBase"]
[SourceQuality "1"]
[WhiteTeam "Poland"]
[BlackTeam "Israel"]
[WhiteTeamCountry "POL"]
[BlackTeamCountry "ISR"]
[TimeControl "40/5400+30:1800+30"]

1. Nf3 {[%emt 0:00:00]} Nf6 {[%emt 0:00:00]} 2. c4 {[%emt 0:00:00]} e6 {[%emt 0:00:46]} 3. g3 {[%emt 0:00:15]} d5 {[%emt 0:00:29]} 4. Bg2 {[%emt 0:00:17]} dxc4 {[%emt 0:00:31]} 5. Qa4+ {[%emt 0:00:06]} Bd7 {[%emt 0:00:17]} 6. Qxc4 {[%emt 0:00:37]} c5 {[%emt 0:00:06]} 7. Ne5 {[%emt 0:01:22]} Qc8 {[%emt 0:00:12]} 8. Qd3 {[%emt 0:01:05]} Nc6 {[%emt 0:00:08]} 9. Nxd7 {[%emt 0:00:05]} Nxd7 {[%emt 0:00:04]} 10. Nc3 {[%emt 0:01:59]} Be7 {[%emt 0:04:50]} 11. O-O {[%emt 0:00:32]} O-O {[%emt 0:04:05]} 12. b3 {[%emt 0:07:36]} Rd8 {[%emt 0:12:51]} 13. Bb2 {[%emt 0:05:49]} Nb6 {[%emt 0:04:50]} 14. Qe3 {[%emt 0:03:27]} Nd5 {[%emt 0:13:52]} 15. Nxd5 {[%emt 0:19:37]} exd5 {[%emt 0:00:02]} 16. Qf3 {[%emt 0:01:11]} a5 {[%emt 0:10:58]} 17. Qh5 {[%emt 0:06:52]} Qe6 {[%emt 0:04:35]} 18. a4 {[%emt 0:10:30]} Ra6 {[%emt 0:13:49]} 19. Rab1 {[%emt 0:02:49]} Rb6 {[%emt 0:00:56]} 20. Ba1 {[%emt 0:00:17]} Bf6 {[%emt 0:11:29]} 21. Bxf6 {[%emt 0:10:57]} Qxf6 {[%emt 0:00:07]} 22. Rfc1 {[%emt 0:00:45]} Qd6 {[%emt 0:01:51]} 23. e3 {[%emt 0:00:53]} Rb4 {[%emt 0:00:17]} 24. Qf5 {[%emt 0:07:17]} Ne7 {[%emt 0:04:29]} 25. Qc2 {[%emt 0:06:29]} b6 {[%emt 0:00:05]} 26. d3 {[%emt 0:00:31]} g6 {[%emt 0:01:24]} 27. Rd1 {[%emt 0:00:37]} Nf5 {[%emt 0:01:36]} 28. Bh3 {[%emt 0:00:33]} Qf6 {[%emt 0:03:27]} 29. d4 {[%emt 0:02:15]} cxd4 {[%emt 0:00:55]} 30. Bxf5 {[%emt 0:00:06]} gxf5 {[%emt 0:03:02]} 31. Rxd4 {[%emt 0:03:04]} 1/2-1/2

[Event "EYTCC U18 Open 2019"]
[Site "Pardubice"]
[Date "2019.07.13"]
[Round "3.30"]
[White "Bronstein, Or"]
[Black "Teclaf, Pawel"]
[Result "1-0"]
[ECO "A40"]
[WhiteElo "2378"]
[BlackElo "2454"]
[Annotator "ChessBase"]
[PlyCount "65"]
[EventDate "2019.07.11"]
[EventType "swiss"]
[EventCountry "CZE"]
[SourceTitle "playchess.com"]
[Source "ChessBase"]
[SourceQuality "1"]
[WhiteTeam "Israel"]
[BlackTeam "Poland"]
[WhiteTeamCountry "ISR"]
[BlackTeamCountry "POL"]
[TimeControl "40/5400+30:1800+30"]

1. d4 {[%emt 0:00:00]} e6 {[%emt 0:00:00]} 2. c4 {[%emt 0:00:09]} d5 {[%emt 0:00:00]} 3. Nf3 {[%emt 0:00:04]} c5 {[%emt 0:00:00]} 4. cxd5 {[%emt 0:00:37]} exd5 {[%emt 0:00:00]} 5. Bg5 {[%emt 0:00:43]} Be7 {[%emt 0:03:10]} 6. Bxe7 {[%emt 0:00:17]} Nxe7 {[%emt 0:00:29]} 7. dxc5 {[%emt 0:00:06]} Qa5+ {[%emt 0:11:03]} 8. Nc3 {[%emt 0:00:13]} Nbc6 {[%emt 0:03:39]} 9. e3 {[%emt 0:00:06]} O-O {[%emt 0:04:13]} 10. Bb5 {[%emt 0:19:09]} a6 {[%emt 0:02:59]} 11. Bxc6 {[%emt 0:00:08]} bxc6 {[%emt 0:00:18]} 12. O-O {[%emt 0:00:58]} Qxc5 {[%emt 0:04:16]} 13. Na4 {[%emt 0:02:28]} Qd6 {[%emt 0:10:51]} 14. Qd4 {[%emt 0:01:01]} Re8 {[%emt 0:15:39]} 15. Rac1 {[%emt 0:03:48]} Bf5 {[%emt 0:01:44]} 16. Rfd1 {[%emt 0:03:28]} Qh6 {[%emt 0:04:17]} 17. Nc5 {[%emt 0:02:15]} Ng6 {[%emt 0:01:08]} 18. Qa4 {[%emt 0:03:54]} Rac8 {[%emt 0:07:14]} 19. Re1 {[%emt 0:11:31]} Be4 {[%emt 0:05:44]} 20. Nd2 {[%emt 0:04:08]} Bf5 {[%emt 0:01:12]} 21. Nf1 {[%emt 0:13:58]} Nh4 {[%emt 0:04:07]} 22. Ng3 {[%emt 0:00:11]} d4 {[%emt 0:00:17]} 23. Nxf5 {[%emt 0:07:41]} Nxf5 {[%emt 0:00:02]} 24. e4 {[%emt 0:02:37]} Nh4 {[%emt 0:01:06]} 25. Qa3 {[%emt 0:00:06]} Re5 {[%emt 0:03:46]} 26. g3 {[%emt 0:01:11]} Ng6 {[%emt 0:02:15]} 27. Qxa6 {[%emt 0:02:42]} Rce8 {[%emt 0:02:58]} 28. Qxc6 {[%emt 0:01:29]} Qh3 {[%emt 0:03:27]} 29. Qd7 {[%emt 0:05:01]} f5 {[%emt 0:01:19]} 30. Nd3 {[%emt 0:00:32]} Nh4 {[%emt 0:05:22]} 31. gxh4 {[%emt 0:00:02]} R5e6 {[%emt 0:01:59]} 32. Nf4 {[%emt 0:01:07]} Qg4+ {[%emt 0:00:36]} 33. Ng2 {[%emt 0:00:23]} 1-0

[Event "EYTCC U18 Open 2019"]
[Site "Pardubice"]
[Date "2019.07.13"]
[Round "3.31"]
[White "Kosakowski, Jakub"]
[Black "Gorshtein, Ido"]
[Result "0-1"]
[ECO "B10"]
[WhiteElo "2394"]
[BlackElo "2367"]
[Annotator "NA"]
[PlyCount "102"]
[EventDate "2019.07.11"]
[EventType "swiss"]
[EventCountry "CZE"]
[SourceTitle "playchess.com"]
[Source "ChessBase"]
[SourceQuality "1"]
[WhiteTeam "Poland"]
[BlackTeam "Israel"]
[WhiteTeamCountry "POL"]
[BlackTeamCountry "ISR"]
[TimeControl "40/5400+30:1800+30"]

1. e4 {[%emt 0:00:00]} c6 {[%emt 0:00:00]} 2. Nf3 {[%emt 0:00:00]} d5 {[%emt 0:00:00]} 3. exd5 {[%emt 0:00:12]} cxd5 {[%emt 0:00:00]} 4. Ne5 {[%emt 0:00:08]} Nc6 {[%emt 0:00:00]} 5. d4 {[%emt 0:00:13]} Nf6 {[%emt 0:00:06]} 6. Bb5 {[%emt 0:00:13]} Bd7 {[%emt 0:00:02]} 7. Nxd7 {[%emt 0:00:16]} Qxd7 {[%emt 0:00:03]} 8. c3 {[%emt 0:00:12]} e6 {[%emt 0:00:41]} 9. O-O {[%emt 0:00:13]} Bd6 {[%emt 0:00:05]} 10. Nd2 {[%emt 0:00:10]} Qc7 {[%emt 0:01:10]} 11. Nf3 {[%emt 0:09:51]} Ne4 {[%emt 0:16:35]} 12. Re1 {[%emt 0:00:42]} O-O {[%emt 0:08:52]} 13. Bd3 {[%emt 0:04:11]} f5 {[%emt 0:01:27]} 14. c4 {[%emt 0:00:24]} Kh8 {[%emt 0:03:36]} 15. a3 {[%emt 0:01:42]} dxc4 {[%emt 0:18:12]} 16. Bxe4 {[%emt 0:01:46]} fxe4 {[%emt 0:00:02]} 17. Rxe4 {[%emt 0:00:12]} Qf7 {[%emt 0:05:17]} 18. Qe2 {[%emt 0:00:47]} Qh5 {[%emt 0:05:14]} 19. Rh4 {[%emt 0:09:44]} Qd5 {[%emt 0:13:10]} 20. Ng5 {[%emt 0:26:13]} h6 {[%emt 0:00:32]} 21. Qxe6 {[%emt 0:00:40]} Qxe6 {[%emt 0:00:08]} 22. Nxe6 {[%emt 0:00:05]} Rf5 {[%emt 0:00:06]} 23. Bd2 {[%emt 0:00:15]} Re8 {[%emt 0:03:59]} 24. Re1 {[%emt 0:00:17]} Re7 {[%emt 0:02:43]} 25. Rhe4 {[%emt 0:03:47]} Ref7 {[%emt 0:04:39]} 26. f4 {[%emt 0:00:36]} Rd5 {[%emt 0:01:49]} 27. g4 {[%emt 0:02:09]} g6 {[%emt 0:00:14]} 28. R1e3 {[%emt 0:00:21]} b5 {[%emt 0:05:27]} 29. Rh3 {[%emt 0:00:39]} Rh7 {[%emt 0:00:34]} 30. Nd8 {[%emt 0:06:03]} Ne7 {[%emt 0:05:03]} 31. Nb7 {[%emt 0:00:57]} Bc7 {[%emt 0:00:19]} 32. Re6 {[%emt 0:03:07]} Bb6 {[%emt 0:01:27]} 33. Bc3 {[%emt 0:18:28]} Bxd4+ {[%emt 0:00:15]} 34. Bxd4+ {[%emt 0:00:04]} Rxd4 {[%emt 0:00:07]} 35. Rhe3 {[%emt 0:00:10]} Nd5 {[%emt 0:02:35]} 36. Re8+ {[%emt 0:00:14]} Kg7 {[%emt 0:00:01]} 37. R3e5 {[%emt 0:00:32]} Rh8 {[%emt 0:00:37]} 38. Rxh8 {[%emt 0:11:31]} Kxh8 {[%emt 0:00:02]} 39. Re8+ {[%emt 0:01:54]} Kg7 {[%emt 0:00:02]} 40. Nc5 {[%emt 0:00:24]} Nxf4 {[%emt 0:02:20]} 41. Rb8 {[%emt 0:30:12]} Kf6 {[%emt 0:06:22]} 42. Rxb5 {[%emt 0:00:00]} Rd5 {[%emt 0:01:20]} 43. Ra5 {[%emt 0:00:00]} Ke5 {[%emt 0:08:36]} 44. Nd7+ {[%emt 0:00:00]} Kd4 {[%emt 0:00:07]} 45. Rxa7 {[%emt 0:00:00]} Ke3 {[%emt 0:00:06]} 46. h4 {[%emt 0:00:00]} Kf3 {[%emt 0:01:40]} 47. Nf6 {[%emt 0:00:00]} Rd1+ {[%emt 0:00:33]} 48. Kh2 {[%emt 0:00:00]} Rd2+ {[%emt 0:00:07]} 49. Kg1 {[%emt 0:00:00]} Ne2+ {[%emt 0:00:43]} 50. Kh2 {[%emt 0:00:00]} Ng3+ {[%emt 0:00:28]} 51. Kh3 {[%emt 0:00:00]} Nf1 {[%emt 0:00:09]} 0-1